[Event "*** Titled Tuesday Blitz"]
[Site "Chess.com"]
[Date "2021.04.06"]
[Round "1"]
[White "Zq1"]
[Black "lrestevez"]
[Result "1-0"]
[WhiteElo "2513"]
[BlackElo "2124"]
[TimeControl "180+1"]
[EndTime "10:06:24 PDT"]
[Termination "Zq1 won by resignation"]

1. d4 {[%clk 0:03:00.9]} 1... Nf6 {[%clk 0:02:58.9]} 2. c4 {[%clk 0:02:59.7]}
2... e5 {[%clk 0:02:57]} 3. dxe5 {[%clk 0:02:58.9]} 3... Ng4 {[%clk 0:02:52.3]}
4. Bf4 {[%clk 0:02:58.4]} 4... Bb4+ {[%clk 0:02:48.5]} 5. Nc3 {[%clk 0:02:57.6]}
5... Bxc3+ {[%clk 0:02:46.8]} 6. bxc3 {[%clk 0:02:57.1]} 6... Nc6 {[%clk
0:02:47.3]} 7. Nf3 {[%clk 0:02:56.3]} 7... Qe7 {[%clk 0:02:44.2]} 8. Qd5 {[%clk
0:02:56]} 8... f6 {[%clk 0:02:42.9]} 9. exf6 {[%clk 0:02:55.2]} 9... Nxf6 {[%clk
0:02:42]} 10. Qd3 {[%clk 0:02:54]} 10... d6 {[%clk 0:02:40]} 11. g3 {[%clk
0:02:53.4]} 11... O-O {[%clk 0:02:39.8]} 12. Bg2 {[%clk 0:02:53.3]} 12... Kh8
{[%clk 0:02:38.2]} 13. O-O {[%clk 0:02:52]} 13... Nh5 {[%clk 0:02:38.7]} 14. Bg5
{[%clk 0:02:48.2]} 14... Qf7 {[%clk 0:02:34.1]} 15. Rab1 {[%clk 0:02:43]} 15...
Bf5 {[%clk 0:02:34.3]} 16. e4 {[%clk 0:02:40.7]} 16... Bc8 {[%clk 0:02:34.8]}
17. h3 {[%clk 0:02:34.9]} 17... Rb8 {[%clk 0:02:27.6]} 18. Be3 {[%clk
0:02:30.2]} 18... Ne5 {[%clk 0:01:57.2]} 19. Nxe5 {[%clk 0:02:28.5]} 19... dxe5
{[%clk 0:01:58.1]} 20. Bxa7 {[%clk 0:02:26.6]} 20... Ra8 {[%clk 0:01:55.9]} 21.
Bc5 {[%clk 0:02:26.3]} 21... Re8 {[%clk 0:01:54.4]} 22. Qd5 {[%clk 0:02:12.2]}
22... Qg6 {[%clk 0:01:39.9]} 23. Be3 {[%clk 0:02:08.9]} 23... Rxa2 {[%clk
0:01:36.1]} 24. Ra1 {[%clk 0:02:07]} 24... Rxa1 {[%clk 0:01:35.4]} 25. Rxa1
{[%clk 0:02:05.8]} 25... Nf6 {[%clk 0:01:33.9]} 26. Qd3 {[%clk 0:02:01.2]} 26...
Qf7 {[%clk 0:01:26.6]} 27. c5 {[%clk 0:01:56.9]} 27... c6 {[%clk 0:01:18.9]} 28.
Ra8 {[%clk 0:01:49.1]} 28... Be6 {[%clk 0:01:14.1]} 29. Rxe8+ {[%clk 0:01:47.4]}
29... Qxe8 {[%clk 0:01:15]} 30. Qd6 {[%clk 0:01:45]} 30... Bc8 {[%clk
0:01:04.9]} 31. f4 {[%clk 0:01:38.6]} 31... exf4 {[%clk 0:01:04.1]} 32. gxf4
{[%clk 0:01:38.3]} 32... h6 {[%clk 0:01:00.2]} 33. Bd4 {[%clk 0:01:31]} 33...
Qe6 {[%clk 0:00:42]} 34. f5 {[%clk 0:01:10.2]} 34... Qxd6 {[%clk 0:00:18.2]} 35.
cxd6 {[%clk 0:01:09.2]} 35... Kg8 {[%clk 0:00:18.2]} 36. c4 {[%clk 0:01:03.8]}
36... Kf7 {[%clk 0:00:17.8]} 37. c5 {[%clk 0:01:03.6]} 37... Nd7 {[%clk
0:00:17.4]} 38. e5 {[%clk 0:01:02]} 38... Nf8 {[%clk 0:00:16.2]} 39. e6+ {[%clk
0:01:02.1]} 39... Bxe6 {[%clk 0:00:16.1]} 40. fxe6+ {[%clk 0:01:02.2]} 40...
Nxe6 {[%clk 0:00:17]} 41. Be3 {[%clk 0:01:02.3]} 41... Kg6 {[%clk 0:00:16.7]}
42. Be4+ {[%clk 0:01:01.3]} 1-0

[Event "*** Titled Tuesday Blitz"]
[Site "Chess.com"]
[Date "2021.04.06"]
[Round "1"]
[White "DKmirl"]
[Black "Grieve72"]
[Result "0-1"]
[WhiteElo "1987"]
[BlackElo "2486"]
[TimeControl "180+1"]
[EndTime "10:06:24 PDT"]
[Termination "Grieve72 won by checkmate"]

1. d4 {[%clk 0:02:58.1]} 1... f5 {[%clk 0:02:47.9]} 2. c4 {[%clk 0:02:56.1]}
2... Nf6 {[%clk 0:02:48.1]} 3. Nf3 {[%clk 0:02:56.2]} 3... g6 {[%clk 0:02:48.1]}
4. g3 {[%clk 0:02:56.5]} 4... Bg7 {[%clk 0:02:48.7]} 5. Bg2 {[%clk 0:02:56.7]}
5... O-O {[%clk 0:02:49.4]} 6. O-O {[%clk 0:02:57.4]} 6... d6 {[%clk 0:02:50.1]}
7. Nc3 {[%clk 0:02:55.6]} 7... c6 {[%clk 0:02:50.6]} 8. Re1 {[%clk 0:02:45.7]}
8... Na6 {[%clk 0:02:49]} 9. e4 {[%clk 0:02:44.4]} 9... fxe4 {[%clk 0:02:49.9]}
10. Nxe4 {[%clk 0:02:45.1]} 10... Nxe4 {[%clk 0:02:50.8]} 11. Rxe4 {[%clk
0:02:45.5]} 11... e5 {[%clk 0:02:51.7]} 12. Bg5 {[%clk 0:02:30.9]} 12... Qc7
{[%clk 0:02:42.2]} 13. dxe5 {[%clk 0:02:27.2]} 13... dxe5 {[%clk 0:02:43.1]} 14.
Re1 {[%clk 0:02:14.2]} 14... Bg4 {[%clk 0:02:39.7]} 15. Qb3 {[%clk 0:02:03.7]}
15... Qf7 {[%clk 0:02:26.5]} 16. Re3 {[%clk 0:01:38]} 16... h6 {[%clk
0:02:26.1]} 17. Bh4 {[%clk 0:01:29.3]} 17... g5 {[%clk 0:02:20.6]} 18. Nxg5
{[%clk 0:01:24.9]} 18... Qxf2+ {[%clk 0:02:15.8]} 19. Kh1 {[%clk 0:01:23.4]}
19... hxg5 {[%clk 0:02:16.7]} 20. Bxg5 {[%clk 0:01:23.3]} 20... Nc5 {[%clk
0:02:06.8]} 21. Qc3 {[%clk 0:01:14.1]} 21... e4 {[%clk 0:01:57.3]} 22. Qa3
{[%clk 0:01:06.6]} 22... Bf3 {[%clk 0:01:25.6]} 23. Bxf3 {[%clk 0:00:47.8]}
23... exf3 {[%clk 0:01:26.5]} 24. Rg1 {[%clk 0:00:41.1]} 24... Bd4 {[%clk
0:01:12.7]} 25. Ree1 {[%clk 0:00:21]} 25... Ne4 {[%clk 0:00:59.3]} 26. Be3
{[%clk 0:00:11.8]} 26... Qxe3 {[%clk 0:00:38]} 27. Rxe3 {[%clk 0:00:12.7]} 27...
Nf2# {[%clk 0:00:38.2]} 0-1

[Event "*** Titled Tuesday Blitz"]
[Site "Chess.com"]
[Date "2021.04.06"]
[Round "1"]
[White "LenkaPtacnikova"]
[Black "ozates"]
[Result "0-1"]
[WhiteElo "2185"]
[BlackElo "2529"]
[TimeControl "180+1"]
[EndTime "10:06:25 PDT"]
[Termination "ozates won by checkmate"]

1. Nf3 {[%clk 0:03:00.6]} 1... c5 {[%clk 0:02:57.9]} 2. g3 {[%clk 0:03:00.8]}
2... Nc6 {[%clk 0:02:58.4]} 3. Bg2 {[%clk 0:03:01]} 3... g6 {[%clk 0:02:59.1]}
4. O-O {[%clk 0:03:01.3]} 4... Bg7 {[%clk 0:02:59.7]} 5. e3 {[%clk 0:02:54.4]}
5... d5 {[%clk 0:02:53.1]} 6. d4 {[%clk 0:02:54.7]} 6... cxd4 {[%clk 0:02:51.6]}
7. exd4 {[%clk 0:02:54.4]} 7... Bg4 {[%clk 0:02:52]} 8. c3 {[%clk 0:02:53.6]}
8... e6 {[%clk 0:02:50.7]} 9. Qb3 {[%clk 0:02:50.2]} 9... Bxf3 {[%clk
0:02:47.1]} 10. Qxb7 {[%clk 0:02:38.6]} 10... Nxd4 {[%clk 0:02:35.6]} 11. cxd4
{[%clk 0:02:32.8]} 11... Bxg2 {[%clk 0:02:35.4]} 12. Qc6+ {[%clk 0:02:31.7]}
12... Kf8 {[%clk 0:02:35]} 13. Kxg2 {[%clk 0:02:27.5]} 13... Ne7 {[%clk
0:02:35.5]} 14. Qa4 {[%clk 0:02:25.5]} 14... Nf5 {[%clk 0:02:32.9]} 15. Rd1
{[%clk 0:02:16.1]} 15... Bf6 {[%clk 0:02:29.2]} 16. Nc3 {[%clk 0:02:06.3]} 16...
Kg7 {[%clk 0:02:26.2]} 17. Bf4 {[%clk 0:02:03.7]} 17... h5 {[%clk 0:02:25.5]}
18. Be5 {[%clk 0:02:02]} 18... h4 {[%clk 0:02:24]} 19. g4 {[%clk 0:01:58]} 19...
h3+ {[%clk 0:02:23.9]} 20. Kh1 {[%clk 0:01:47.4]} 20... Nh4 {[%clk 0:02:20.7]}
21. f4 {[%clk 0:01:43.7]} 21... Bxe5 {[%clk 0:02:14.5]} 22. dxe5 {[%clk
0:01:41.6]} 22... Qb6 {[%clk 0:02:06.4]} 23. Qc2 {[%clk 0:01:09.7]} 23... Qe3
{[%clk 0:01:56.1]} 24. Rf1 {[%clk 0:01:03.9]} 24... Rac8 {[%clk 0:01:45.1]} 25.
Qf2 {[%clk 0:00:59.8]} 25... Qxf2 {[%clk 0:01:37.6]} 26. Rxf2 {[%clk 0:01:00]}
26... d4 {[%clk 0:01:38.3]} 27. Ne4 {[%clk 0:00:59.3]} 27... d3 {[%clk
0:01:36.4]} 28. Rd1 {[%clk 0:00:52.8]} 28... Rhd8 {[%clk 0:01:33.8]} 29. Nd6
{[%clk 0:00:45.9]} 29... Rc2 {[%clk 0:01:14.3]} 30. Rxc2 {[%clk 0:00:25.5]}
30... dxc2 {[%clk 0:01:13.3]} 31. Rc1 {[%clk 0:00:26]} 31... g5 {[%clk
0:01:12.9]} 32. Rxc2 {[%clk 0:00:23.3]} 32... gxf4 {[%clk 0:01:12.1]} 33. Rc3
{[%clk 0:00:20.6]} 33... f3 {[%clk 0:01:11.1]} 34. Kg1 {[%clk 0:00:20.8]} 34...
Ng6 {[%clk 0:01:06.4]} 35. Rxf3 {[%clk 0:00:17.5]} 35... Nxe5 {[%clk 0:01:05.6]}
36. Re3 {[%clk 0:00:14.5]} 36... Nxg4 {[%clk 0:01:00.1]} 37. Rg3 {[%clk
0:00:14.4]} 37... f5 {[%clk 0:01:00.3]} 38. Nc4 {[%clk 0:00:14.1]} 38... Rd1#
{[%clk 0:00:58.7]} 0-1

[Event "*** Titled Tuesday Blitz"]
[Site "Chess.com"]
[Date "2021.04.06"]
[Round "1"]
[White "dropstoneDP"]
[Black "mbachez"]
[Result "1/2-1/2"]
[WhiteElo "2940"]
[BlackElo "2479"]
[TimeControl "180+1"]
[EndTime "10:06:26 PDT"]
[Termination "Game drawn by repetition"]

1. e4 {[%clk 0:02:59.6]} 1... e6 {[%clk 0:02:59.4]} 2. Qe2 {[%clk 0:02:58.8]}
2... d5 {[%clk 0:03:00.3]} 3. exd5 {[%clk 0:02:59.4]} 3... Qxd5 {[%clk
0:03:00.5]} 4. Nc3 {[%clk 0:02:58.1]} 4... Qd8 {[%clk 0:03:00.2]} 5. g3 {[%clk
0:02:58.4]} 5... Nc6 {[%clk 0:02:59.8]} 6. Nf3 {[%clk 0:02:57.8]} 6... Nf6
{[%clk 0:02:58.2]} 7. Bg2 {[%clk 0:02:56.6]} 7... Be7 {[%clk 0:02:56.3]} 8. O-O
{[%clk 0:02:57.1]} 8... O-O {[%clk 0:02:56.6]} 9. Rd1 {[%clk 0:02:46.2]} 9... e5
{[%clk 0:02:41.4]} 10. h3 {[%clk 0:02:31.8]} 10... Bf5 {[%clk 0:02:33.9]} 11. d3
{[%clk 0:02:31.5]} 11... Re8 {[%clk 0:02:32.2]} 12. g4 {[%clk 0:02:29.9]} 12...
Bg6 {[%clk 0:02:17.2]} 13. Bg5 {[%clk 0:02:14.9]} 13... Nd4 {[%clk 0:02:07]} 14.
Nxd4 {[%clk 0:02:13]} 14... exd4 {[%clk 0:02:06.5]} 15. Bxf6 {[%clk 0:02:13.1]}
15... Bxf6 {[%clk 0:02:03.1]} 16. Ne4 {[%clk 0:02:13.6]} 16... Be5 {[%clk
0:01:59.8]} 17. Re1 {[%clk 0:02:09.3]} 17... c6 {[%clk 0:01:58.7]} 18. Qf3
{[%clk 0:02:02.6]} 18... Qc7 {[%clk 0:01:56.7]} 19. Re2 {[%clk 0:02:01.9]} 19...
Re7 {[%clk 0:01:56.6]} 20. Rae1 {[%clk 0:02:01.3]} 20... Rae8 {[%clk 0:01:56.5]}
21. Kf1 {[%clk 0:01:50.3]} 21... h6 {[%clk 0:01:55.2]} 22. Ng3 {[%clk
0:01:41.5]} 22... Qa5 {[%clk 0:01:11.2]} 23. Nf5 {[%clk 0:01:36.3]} 23... Bxf5
{[%clk 0:01:09.2]} 24. Qxf5 {[%clk 0:01:37.2]} 24... g6 {[%clk 0:01:04.1]} 25.
Qf3 {[%clk 0:01:29.9]} 25... Qxa2 {[%clk 0:01:03.1]} 26. c3 {[%clk 0:01:19.7]}
26... Re6 {[%clk 0:00:53.3]} 27. h4 {[%clk 0:01:13.4]} 27... Kg7 {[%clk
0:00:50.1]} 28. g5 {[%clk 0:01:12.8]} 28... hxg5 {[%clk 0:00:48.9]} 29. hxg5
{[%clk 0:01:13.7]} 29... Qa5 {[%clk 0:00:44.6]} 30. Bh3 {[%clk 0:01:13.6]} 30...
R6e7 {[%clk 0:00:40.3]} 31. cxd4 {[%clk 0:01:14]} 31... Bd6 {[%clk 0:00:17.1]}
32. Qf6+ {[%clk 0:01:13.8]} 32... Kg8 {[%clk 0:00:16.8]} 33. Qxd6 {[%clk
0:01:11.8]} 33... Rxe2 {[%clk 0:00:15.9]} 34. Rxe2 {[%clk 0:01:12.7]} 34... Qa1+
{[%clk 0:00:15.9]} 35. Kg2 {[%clk 0:01:12.6]} 35... Rxe2 {[%clk 0:00:15.5]} 36.
Qd8+ {[%clk 0:01:13.2]} 36... Kg7 {[%clk 0:00:15.9]} 37. Qf6+ {[%clk 0:01:13.2]}
37... Kg8 {[%clk 0:00:16.3]} 38. Qd8+ {[%clk 0:01:13.7]} 38... Kg7 {[%clk
0:00:16.1]} 39. Qf6+ {[%clk 0:01:13.9]} 39... Kg8 {[%clk 0:00:16.4]} 40. Qd8+
{[%clk 0:01:14.6]} 1/2-1/2

[Event "*** Titled Tuesday Blitz"]
[Site "Chess.com"]
[Date "2021.04.06"]
[Round "1"]
[White "mapleaff"]
[Black "anon102030"]
[Result "0-1"]
[WhiteElo "2387"]
[BlackElo "2711"]
[TimeControl "180+1"]
[EndTime "10:06:30 PDT"]
[Termination "anon102030 won by resignation"]

1. d4 {[%clk 0:02:59.6]} 1... Nf6 {[%clk 0:02:59.7]} 2. c4 {[%clk 0:02:57]} 2...
e5 {[%clk 0:02:59.8]} 3. dxe5 {[%clk 0:02:56.4]} 3... Ng4 {[%clk 0:03:00]} 4.
Nf3 {[%clk 0:02:56.5]} 4... Nc6 {[%clk 0:02:59.8]} 5. Bf4 {[%clk 0:02:55.9]}
5... Bb4+ {[%clk 0:02:59.6]} 6. Nbd2 {[%clk 0:02:54.2]} 6... Qe7 {[%clk
0:03:00.2]} 7. e3 {[%clk 0:02:53.5]} 7... Ngxe5 {[%clk 0:03:00.5]} 8. Nxe5
{[%clk 0:02:49.3]} 8... Nxe5 {[%clk 0:03:01.4]} 9. a3 {[%clk 0:02:48.7]} 9...
Bxd2+ {[%clk 0:02:47]} 10. Qxd2 {[%clk 0:02:47]} 10... d6 {[%clk 0:02:47.9]} 11.
Be2 {[%clk 0:02:46.7]} 11... b6 {[%clk 0:02:43]} 12. Bxe5 {[%clk 0:02:41.3]}
12... Qxe5 {[%clk 0:02:36.3]} 13. Bf3 {[%clk 0:02:39.6]} 13... Rb8 {[%clk
0:02:36.6]} 14. Bc6+ {[%clk 0:02:38.9]} 14... Ke7 {[%clk 0:02:24.9]} 15. O-O-O
{[%clk 0:02:31.9]} 15... Be6 {[%clk 0:02:19.3]} 16. Bd5 {[%clk 0:02:20.8]} 16...
b5 {[%clk 0:02:18.8]} 17. f4 {[%clk 0:02:13.4]} 17... Qf6 {[%clk 0:02:04.5]} 18.
Bxe6 {[%clk 0:01:40.9]} 18... Qxe6 {[%clk 0:02:05.4]} 19. cxb5 {[%clk
0:01:38.6]} 19... Rxb5 {[%clk 0:02:02.8]} 20. Qd4 {[%clk 0:01:32.5]} 20... Rhb8
{[%clk 0:01:44.6]} 21. Rd2 {[%clk 0:01:28.8]} 21... Qa2 {[%clk 0:01:35.7]} 22.
Rhd1 {[%clk 0:00:18.5]} 22... Qa1+ {[%clk 0:01:33.1]} 23. Kc2 {[%clk 0:00:18]}
23... Rxb2+ {[%clk 0:01:33.6]} 24. Kd3 {[%clk 0:00:18.1]} 24... Qxa3+ {[%clk
0:01:32.9]} 25. Ke2 {[%clk 0:00:18]} 25... Kf8 {[%clk 0:01:22.8]} 26. h4 {[%clk
0:00:13.1]} 26... a5 {[%clk 0:01:19.1]} 27. h5 {[%clk 0:00:12.6]} 27... h6
{[%clk 0:01:19.1]} 28. g4 {[%clk 0:00:12.5]} 28... Rxd2+ {[%clk 0:01:15.4]} 29.
Rxd2 {[%clk 0:00:13.4]} 29... Qb4 {[%clk 0:01:14.1]} 30. Qd3 {[%clk 0:00:11.3]}
30... Qb5 {[%clk 0:01:13.2]} 31. Rc2 {[%clk 0:00:10.3]} 31... c5 {[%clk
0:01:11.5]} 32. Rc4 {[%clk 0:00:09.6]} 32... Qc6 {[%clk 0:01:04.8]} 33. g5
{[%clk 0:00:09.4]} 33... Rb2+ {[%clk 0:01:00.6]} 34. Kd1 {[%clk 0:00:08.6]}
34... Qh1+ {[%clk 0:01:00.2]} 0-1

[Event "*** Titled Tuesday Blitz"]
[Site "Chess.com"]
[Date "2021.04.06"]
[Round "1"]
[White "Andreikka"]
[Black "jerry_77"]
[Result "1-0"]
[WhiteElo "2879"]
[BlackElo "2451"]
[TimeControl "180+1"]
[EndTime "10:06:34 PDT"]
[Termination "Andreikka won by resignation"]

1. d4 {[%clk 0:03:00.2]} 1... Nf6 {[%clk 0:02:59.4]} 2. Nc3 {[%clk 0:03:00.2]}
2... d5 {[%clk 0:02:59.5]} 3. Bf4 {[%clk 0:03:00.8]} 3... e6 {[%clk 0:02:59.3]}
4. e3 {[%clk 0:03:00.9]} 4... Bd6 {[%clk 0:02:59]} 5. Nf3 {[%clk 0:02:56.1]}
5... O-O {[%clk 0:02:58.9]} 6. Bd3 {[%clk 0:02:55.5]} 6... c5 {[%clk 0:02:58.9]}
7. Ne5 {[%clk 0:02:54.5]} 7... c4 {[%clk 0:02:55.9]} 8. Be2 {[%clk 0:02:51.4]}
8... Qb6 {[%clk 0:02:55.7]} 9. Rb1 {[%clk 0:02:50.5]} 9... Nc6 {[%clk
0:02:44.4]} 10. Nxc4 {[%clk 0:02:48.8]} 10... dxc4 {[%clk 0:02:41.9]} 11. Bxd6
{[%clk 0:02:48.8]} 11... Rd8 {[%clk 0:02:38.5]} 12. Bc5 {[%clk 0:02:45.6]} 12...
Qc7 {[%clk 0:02:38.4]} 13. O-O {[%clk 0:02:43.7]} 13... b6 {[%clk 0:02:30.8]}
14. Ba3 {[%clk 0:02:43.4]} 14... a6 {[%clk 0:02:30.9]} 15. b3 {[%clk 0:02:40.9]}
15... cxb3 {[%clk 0:02:28.3]} 16. axb3 {[%clk 0:02:18.1]} 16... Bb7 {[%clk
0:02:23.7]} 17. Bb2 {[%clk 0:02:17.6]} 17... Ne7 {[%clk 0:02:14.7]} 18. Bf3
{[%clk 0:02:15.2]} 18... e5 {[%clk 0:02:07.4]} 19. Bxb7 {[%clk 0:02:13.2]} 19...
Qxb7 {[%clk 0:01:58.9]} 20. Ne2 {[%clk 0:02:12.9]} 20... Nf5 {[%clk 0:01:50.6]}
21. c4 {[%clk 0:02:09.3]} 21... Rac8 {[%clk 0:01:18.1]} 22. d5 {[%clk
0:02:05.1]} 22... b5 {[%clk 0:01:16.7]} 23. Bxe5 {[%clk 0:01:58.8]} 23... Ng4
{[%clk 0:00:44.7]} 24. Bf4 {[%clk 0:01:55.8]} 24... bxc4 {[%clk 0:00:41.2]} 25.
bxc4 {[%clk 0:01:55.7]} 25... Qe7 {[%clk 0:00:41.2]} 26. Qd3 {[%clk 0:01:54.3]}
26... g6 {[%clk 0:00:25.4]} 27. Nd4 {[%clk 0:01:48.6]} 27... Nxd4 {[%clk
0:00:16.9]} 28. exd4 {[%clk 0:01:49.5]} 28... Qf6 {[%clk 0:00:15.6]} 29. Bg3
{[%clk 0:01:45.7]} 29... Nh6 {[%clk 0:00:14]} 30. Be5 {[%clk 0:01:40.4]} 30...
Qe7 {[%clk 0:00:13.2]} 31. d6 {[%clk 0:01:38]} 31... Qe6 {[%clk 0:00:11.7]} 32.
Rfe1 {[%clk 0:01:36.4]} 32... Nf5 {[%clk 0:00:11.7]} 33. c5 {[%clk 0:01:34.5]}
33... Qd5 {[%clk 0:00:11.6]} 34. Qxa6 {[%clk 0:01:28.9]} 34... Nh4 {[%clk
0:00:08.2]} 35. Qf1 {[%clk 0:01:26]} 35... Re8 {[%clk 0:00:08.1]} 36. f3 {[%clk
0:01:23.4]} 36... Nf5 {[%clk 0:00:05.4]} 37. Qf2 {[%clk 0:01:20.6]} 37... Re6
{[%clk 0:00:05.1]} 38. Rbc1 {[%clk 0:01:20.7]} 38... Rce8 {[%clk 0:00:04.4]} 39.
c6 {[%clk 0:01:20.9]} 39... f6 {[%clk 0:00:04.5]} 40. d7 {[%clk 0:01:20.8]}
40... fxe5 {[%clk 0:00:03.7]} 41. dxe8=Q+ {[%clk 0:01:20.8]} 41... Rxe8 {[%clk
0:00:04.5]} 42. Rxe5 {[%clk 0:01:20.9]} 42... Rxe5 {[%clk 0:00:02.3]} 43. dxe5
{[%clk 0:01:21.8]} 43... Ne7 {[%clk 0:00:03.2]} 44. c7 {[%clk 0:01:22.1]} 44...
Qe6 {[%clk 0:00:03.7]} 45. Qc5 {[%clk 0:01:21.3]} 45... Kf7 {[%clk 0:00:04]} 46.
Qxe7+ {[%clk 0:01:20.1]} 1-0

[Event "*** Titled Tuesday Blitz"]
[Site "Chess.com"]
[Date "2021.04.06"]
[Round "1"]
[White "banane_verte"]
[Black "fastestmindalive"]
[Result "0-1"]
[WhiteElo "2428"]
[BlackElo "2806"]
[TimeControl "180+1"]
[EndTime "10:06:36 PDT"]
[Termination "fastestmindalive won by checkmate"]

1. e4 {[%clk 0:03:00.9]} 1... c5 {[%clk 0:02:56.2]} 2. Nc3 {[%clk 0:02:58.3]}
2... Nc6 {[%clk 0:02:37.2]} 3. g3 {[%clk 0:02:57.5]} 3... g6 {[%clk 0:02:19.2]}
4. Bg2 {[%clk 0:02:57.3]} 4... Bg7 {[%clk 0:02:18.4]} 5. d3 {[%clk 0:02:56.9]}
5... Rb8 {[%clk 0:02:17.5]} 6. Be3 {[%clk 0:02:56.8]} 6... d6 {[%clk 0:02:16.9]}
7. Qd2 {[%clk 0:02:52.7]} 7... b5 {[%clk 0:02:15]} 8. Nge2 {[%clk 0:02:50.6]}
8... b4 {[%clk 0:02:15]} 9. Nd1 {[%clk 0:02:50.5]} 9... h5 {[%clk 0:02:11.5]}
10. d4 {[%clk 0:02:44.6]} 10... cxd4 {[%clk 0:02:08.2]} 11. Nxd4 {[%clk
0:02:45.5]} 11... Bd7 {[%clk 0:02:08.3]} 12. Nxc6 {[%clk 0:02:39.3]} 12... Bxc6
{[%clk 0:02:09.2]} 13. Bd4 {[%clk 0:02:39.9]} 13... Nf6 {[%clk 0:01:59.1]} 14.
O-O {[%clk 0:02:17.4]} 14... Qc7 {[%clk 0:01:43.9]} 15. e5 {[%clk 0:02:03.6]}
15... dxe5 {[%clk 0:01:43.7]} 16. Bxc6+ {[%clk 0:01:49.7]} 16... Qxc6 {[%clk
0:01:42.7]} 17. Bxe5 {[%clk 0:01:50.6]} 17... Rb5 {[%clk 0:01:36.2]} 18. Bd4
{[%clk 0:01:37.1]} 18... h4 {[%clk 0:01:35.9]} 19. Ne3 {[%clk 0:01:33]} 19...
hxg3 {[%clk 0:01:33.2]} 20. fxg3 {[%clk 0:01:32.3]} 20... Rbh5 {[%clk
0:01:26.7]} 21. Qxb4 {[%clk 0:01:21.5]} 21... Rxh2 {[%clk 0:01:07.1]} 22. Qb8+
{[%clk 0:01:14.9]} 22... Kd7 {[%clk 0:01:06.9]} 23. Qxa7+ {[%clk 0:01:15.2]}
23... Kc8 {[%clk 0:01:07]} 24. Qc5 {[%clk 0:00:59.1]} 24... Rh1+ {[%clk
0:01:04.5]} 25. Kf2 {[%clk 0:00:59.5]} 25... Ne4+ {[%clk 0:01:05.1]} 26. Ke2
{[%clk 0:00:44.1]} 26... Nxc5 {[%clk 0:01:04.5]} 27. Rxh1 {[%clk 0:00:37.4]}
27... Rxh1 {[%clk 0:01:04.1]} 28. Rxh1 {[%clk 0:00:38.3]} 28... Qxh1 {[%clk
0:01:04.3]} 29. Bxc5 {[%clk 0:00:39.2]} 29... Qh2+ {[%clk 0:01:02.3]} 30. Kd3
{[%clk 0:00:38.3]} 30... Bxb2 {[%clk 0:01:02.6]} 31. Bxe7 {[%clk 0:00:33.8]}
31... Qxg3 {[%clk 0:01:02.7]} 32. Bc5 {[%clk 0:00:25.7]} 32... Bc1 {[%clk
0:01:02.3]} 33. a4 {[%clk 0:00:24.5]} 33... Bxe3 {[%clk 0:01:02]} 34. Bxe3
{[%clk 0:00:25.4]} 34... Qd6+ {[%clk 0:01:02.2]} 35. Bd4 {[%clk 0:00:24.7]}
35... Qa3+ {[%clk 0:01:02.6]} 36. c3 {[%clk 0:00:24.5]} 36... Qxa4 {[%clk
0:01:03.5]} 37. Ke4 {[%clk 0:00:25.1]} 37... Kd7 {[%clk 0:01:03.6]} 38. Ke5
{[%clk 0:00:25]} 38... Qc6 {[%clk 0:01:04.3]} 39. c4 {[%clk 0:00:24.4]} 39...
Qe6+ {[%clk 0:01:05.2]} 40. Kf4 {[%clk 0:00:24.6]} 40... Qf5+ {[%clk 0:01:06]}
41. Ke3 {[%clk 0:00:24.9]} 41... Kc6 {[%clk 0:01:06.9]} 42. c5 {[%clk 0:00:25]}
42... Qe6+ {[%clk 0:01:07.8]} 43. Kf4 {[%clk 0:00:25]} 43... Qd5 {[%clk
0:01:08.7]} 44. Be3 {[%clk 0:00:25.2]} 44... Qf5+ {[%clk 0:01:08.4]} 45. Kg3
{[%clk 0:00:25.3]} 45... Kd5 {[%clk 0:01:09.3]} 46. Bf4 {[%clk 0:00:24.5]} 46...
Ke4 {[%clk 0:01:10.2]} 47. Bb8 {[%clk 0:00:24.5]} 47... Qf3+ {[%clk 0:01:11.1]}
48. Kh2 {[%clk 0:00:24.7]} 48... Kf5 {[%clk 0:01:12]} 49. c6 {[%clk 0:00:24.3]}
49... Kg4 {[%clk 0:01:12.9]} 50. c7 {[%clk 0:00:23.9]} 50... Qh3+ {[%clk
0:01:13.8]} 51. Kg1 {[%clk 0:00:23.6]} 51... Kf3 {[%clk 0:01:14.7]} 52. c8=Q
{[%clk 0:00:20.6]} 52... Qg2# {[%clk 0:01:15.6]} 0-1

[Event "*** Titled Tuesday Blitz"]
[Site "Chess.com"]
[Date "2021.04.06"]
[Round "1"]
[White "Firouzja2003"]
[Black "atwalcb"]
[Result "1-0"]
[WhiteElo "3132"]
[BlackElo "2477"]
[TimeControl "180+1"]
[EndTime "10:06:38 PDT"]
[Termination "Firouzja2003 won by resignation"]

1. d4 {[%clk 0:02:58.1]} 1... Nf6 {[%clk 0:02:59.5]} 2. Bg5 {[%clk 0:02:54.9]}
2... d5 {[%clk 0:02:58.9]} 3. Bxf6 {[%clk 0:02:50.4]} 3... gxf6 {[%clk
0:02:59.8]} 4. e3 {[%clk 0:02:51]} 4... c5 {[%clk 0:03:00.1]} 5. dxc5 {[%clk
0:02:40.7]} 5... Nc6 {[%clk 0:02:57.2]} 6. Nf3 {[%clk 0:02:38.8]} 6... e5 {[%clk
0:02:56.4]} 7. Nc3 {[%clk 0:02:38]} 7... Be6 {[%clk 0:02:54.2]} 8. Na4 {[%clk
0:02:31.5]} 8... Bxc5 {[%clk 0:02:31.6]} 9. Nxc5 {[%clk 0:02:29.5]} 9... Qa5+
{[%clk 0:02:32.2]} 10. c3 {[%clk 0:02:30.3]} 10... Qxc5 {[%clk 0:02:32.7]} 11.
Be2 {[%clk 0:02:30.9]} 11... Rg8 {[%clk 0:02:31.2]} 12. O-O {[%clk 0:02:29.9]}
12... Qe7 {[%clk 0:02:24.1]} 13. Qa4 {[%clk 0:02:25.4]} 13... O-O-O {[%clk
0:01:56.5]} 14. Rfd1 {[%clk 0:02:18.4]} 14... Bh3 {[%clk 0:01:39.1]} 15. Ne1
{[%clk 0:02:16.5]} 15... Qd7 {[%clk 0:01:36.4]} 16. Qh4 {[%clk 0:02:09.8]} 16...
Bf5 {[%clk 0:01:32.2]} 17. Qxf6 {[%clk 0:01:53]} 17... Rg6 {[%clk 0:01:29.8]}
18. Qh4 {[%clk 0:01:52.4]} 18... Rdg8 {[%clk 0:01:28.7]} 19. Rd2 {[%clk
0:01:50.9]} 19... Qe6 {[%clk 0:01:00.9]} 20. Rad1 {[%clk 0:01:45.9]} 20... Rh6
{[%clk 0:00:58.4]} 21. Qa4 {[%clk 0:01:45.4]} 21... Be4 {[%clk 0:00:48.1]} 22.
Bd3 {[%clk 0:01:06.5]} 22... Qh3 {[%clk 0:00:41.3]} 23. Bxe4 {[%clk 0:01:05.6]}
23... Qxh2+ {[%clk 0:00:41.4]} 24. Kf1 {[%clk 0:01:05.7]} 24... dxe4 {[%clk
0:00:41.9]} 25. Qxe4 {[%clk 0:01:04.1]} 25... Qh1+ {[%clk 0:00:40.2]} 26. Ke2
{[%clk 0:01:02.1]} 26... Qh5+ {[%clk 0:00:40.8]} 27. Qf3 {[%clk 0:00:56.8]}
27... Qg5 {[%clk 0:00:32.8]} 28. Rd6 {[%clk 0:00:49.3]} 28... Rxd6 {[%clk
0:00:24]} 29. Rxd6 {[%clk 0:00:50.2]} 29... Kc7 {[%clk 0:00:24.4]} 30. Rf6
{[%clk 0:00:48.1]} 30... Nd8 {[%clk 0:00:20.3]} 31. Nd3 {[%clk 0:00:45.4]} 31...
e4 {[%clk 0:00:19.9]} 32. Qf4+ {[%clk 0:00:45.8]} 32... Qxf4 {[%clk 0:00:19.5]}
33. Nxf4 {[%clk 0:00:46.7]} 33... Kd7 {[%clk 0:00:17.8]} 34. Rh6 {[%clk
0:00:46.7]} 34... Rg7 {[%clk 0:00:17.2]} 35. g3 {[%clk 0:00:47.3]} 35... Nc6
{[%clk 0:00:15]} 36. Nh5 {[%clk 0:00:47.5]} 36... Rg8 {[%clk 0:00:13.5]} 37.
Nf6+ {[%clk 0:00:47.4]} 1-0